bitfinex-derivatives/quotes_BTCF0:USTF0_20251115
["timestamp","ask_amount","ask_price","bid_price","bid_amount"]
[1763170483851,0.18051372,95328.0,95327.0,0.04524]
[1763170484348,0.18051372,95328.0,95322.0,0.02802067]
[1763170484349,0.04649,95323.0,95322.0,0.04524]
[1763170484554,0.04649,95323.0,95322.0,0.07326067]
[1763170485350,0.02324,95323.0,95322.0,0.1502368]
[1763170485556,0.05989,95328.0,95327.0,0.04524]
[1763170485959,0.06089,95328.0,95327.0,0.04524]
[1763170486454,0.05989,95328.0,95327.0,0.04524]
[1763170487459,0.06089,95328.0,95327.0,0.04524]
[1763170487644,0.04749,95328.0,95327.0,0.04524]
[1763170487958,0.06089,95328.0,95327.0,0.04524]
[1763170490257,0.06089,95328.0,95327.0,0.07325678]
[1763170490558,0.06089,95328.0,95327.0,0.04524]
[1763170493361,0.06089,95328.0,95327.0,0.1502313]
[1763170493661,0.06089,95328.0,95327.0,0.04524]
[1763170497057,0.06089,95328.0,95321.0,0.03730372]
[1763170497256,0.06089,95328.0,95327.0,0.02803367]
[1763170497461,0.06089,95328.0,95326.0,0.02803367]
[1763170497650,0.04508,95321.0,95320.0,0.44174372]
[1763170497853,0.04508,95321.0,95320.0,0.40444]
[1763170500659,0.04608,95321.0,95320.0,0.40444]
[1763170501159,0.001,95321.0,95320.0,0.509439]
[1763170501363,0.04608,95321.0,95320.0,0.509439]
[1763170503365,0.04608,95321.0,95320.0,0.40444]
[1763170503965,0.04608,95321.0,95320.0,0.3608]
[1763170506258,0.04608,95321.0,95320.0,0.38271]
[1763170507065,0.04608,95321.0,95320.0,0.3608]
[1763170507669,0.04608,95321.0,95315.0,0.02803312]
[1763170507670,0.04508,95316.0,95315.0,0.02803312]
[1763170507858,0.04508,95316.0,95312.0,0.00015738]
[1763170507859,0.04508,95313.0,95312.0,0.00015738]
[1763170508059,0.40588,95313.0,95312.0,0.00015738]
[1763170508255,0.5248437,95313.0,95312.0,0.00015738]
[1763170508560,0.04508,95300.0,95299.0,0.00013357]
[1763170508760,0.40807803,95300.0,95299.0,0.00013357]
[1763170508960,0.52106501,95300.0,95299.0,0.00013357]
[1763170510166,0.04571,95291.0,95290.0,0.00015738]
[1763170510367,0.40651,95291.0,95290.0,0.00015738]
[1763170510564,0.04631,95287.0,95279.0,0.01056045]
[1763170510772,0.04631,95287.0,95273.0,0.02803312]
[1763170511072,0.16601617,95287.0,95273.0,0.02803312]
[1763170511271,0.16601617,95287.0,95272.0,0.0105691]
[1763170511665,0.16615042,95287.0,95272.0,0.0105691]
[1763170511872,0.16615042,95287.0,95277.0,0.12744492]
[1763170512065,0.16715042,95287.0,95277.0,0.12744492]
[1763170512265,0.04631,95278.0,95277.0,0.12744492]
[1763170512468,0.04631,95278.0,95277.0,0.00015738]
[1763170513067,0.04631,95278.0,95277.0,0.02232738]
[1763170513270,0.04631,95278.0,95277.0,0.00015738]
[1763170514164,0.04631,95278.0,95277.0,0.04522738]
[1763170514575,0.04631,95278.0,95277.0,0.02232738]
[1763170514963,0.04631,95278.0,95277.0,0.04522738]
[1763170517565,0.04631,95278.0,95277.0,0.00015738]
[1763170519073,0.04631,95261.0,95260.0,0.3608]
[1763170519272,0.04639458,95261.0,95260.0,0.40587]
[1763170519570,0.04639458,95261.0,95260.0,0.3608]
[1763170519774,0.06012,95256.0,95250.0,0.12728754]
[1763170520568,0.18196143,95256.0,95250.0,0.12728754]
[1763170520967,0.18196143,95256.0,95249.0,0.0106414]
[1763170521167,0.18196143,95256.0,95247.0,0.3608]
[1763170521573,0.18196143,95256.0,95255.0,0.00572414]
[1763170521880,0.18196143,95256.0,95255.0,0.00672414]
[1763170523378,0.18196143,95256.0,95255.0,0.02889414]
[1763170524674,0.02303,95256.0,95255.0,0.51766474]
[1763170524982,0.04631,95256.0,95255.0,0.41259414]
[1763170526580,0.00219803,95260.0,95259.0,0.04507]
[1763170526772,8.458e-05,95261.0,95260.0,0.04507]
[1763170526975,8.458e-05,95261.0,95259.0,0.1050662]
[1763170526976,0.00015746,95265.0,95264.0,0.1633807]
[1763170527281,0.00015746,95265.0,95264.0,0.5241807]
[1763170527980,0.01381,95288.0,95280.0,0.105043]
[1763170528174,0.04624,95281.0,95280.0,0.148853]
[1763170528373,0.15539754,95287.0,95286.0,0.0447]
[1763170528581,0.04538027,95287.0,95286.0,0.0447]
[1763170530985,0.0453,95278.0,95277.0,0.23169038]
[1763170531179,0.0453,95278.0,95277.0,0.04485746]
[1763170532783,0.0453,95278.0,95277.0,0.00015746]
[1763170536487,0.0453,95278.0,95256.0,0.4055]
[1763170536488,0.0453,95257.0,95256.0,0.4055]
[1763170536681,0.04538027,95257.0,95256.0,0.4055]
[1763170537285,0.04538027,95257.0,95256.0,0.43353312]
[1763170537784,8.027e-05,95257.0,95256.0,0.44096312]
[1763170537986,8.027e-05,95257.0,95256.0,0.41293]
[1763170538185,0.02217027,95257.0,95256.0,0.41293]
[1763170538384,0.04538027,95257.0,95256.0,0.41293]
[1763170538995,0.04538027,95257.0,95256.0,0.4065]
[1763170540193,8.027e-05,95257.0,95256.0,0.41293]
[1763170540393,0.04538027,95257.0,95256.0,0.38486]
[1763170540788,0.04538027,95257.0,95256.0,0.4065]
[1763170541089,0.04538027,95257.0,95256.0,0.0457]
[1763170541889,8.027e-05,95257.0,95256.0,0.05906]
[1763170542085,0.04538027,95257.0,95256.0,0.07372663]
[1763170542292,0.04538027,95257.0,95256.0,0.07372563]
[1763170542888,0.00015746,95266.0,95265.0,0.0447]
[1763170543094,0.00015746,95266.0,95264.0,0.01108]
[1763170543095,0.3608,95292.0,95291.0,0.0447]
[1763170543288,0.3608,95306.0,95291.0,0.0447]
[1763170543289,0.4061,95306.0,95305.0,0.0447]
[1763170543494,0.0453,95301.0,95300.0,0.04689803]
[1763170543694,0.0453,95301.0,95300.0,0.15191903]
[1763170543889,0.02209,95301.0,95300.0,0.15191903]
[1763170544101,0.0453,95301.0,95300.0,0.15191903]
[1763170544407,0.0453,95301.0,95300.0,0.16267097]
[1763170544603,0.0453,95301.0,95300.0,0.05764997]
[1763170545498,0.00015746,95310.0,95309.0,0.0447]
[1763170545499,0.04545746,95310.0,95309.0,0.0447]
[1763170545706,0.00089013,95310.0,95309.0,0.0447]
[1763170547098,0.00115746,95310.0,95309.0,0.0447]
[1763170551807,0.00026226,95326.0,95325.0,0.0447]
[1763170553306,0.00126226,95326.0,95325.0,0.0447]
[1763170553909,0.00026226,95326.0,95325.0,0.0447]
[1763170555504,0.0453,95322.0,95321.0,0.38386]
[1763170555706,0.0453,95322.0,95321.0,0.4055]
[1763170556515,0.02235226,95326.0,95325.0,0.0447]
[1763170556710,0.04556226,95326.0,95325.0,0.0447]
[1763170559217,0.00026226,95326.0,95325.0,0.0447]
[1763170562632,0.00015737,95335.0,95334.0,0.04391]
[1763170562934,0.00015737,95335.0,95334.0,0.1488936]
[1763170566325,0.3608,95347.0,95346.0,0.1488803]
[1763170566934,0.38387,95347.0,95346.0,0.1488803]
[1763170567334,0.4063,95347.0,95346.0,0.1488803]
[1763170568627,0.38387,95347.0,95346.0,0.1488803]
[1763170568825,0.00073267,95350.0,95349.0,0.04391]
[1763170569133,0.00015737,95356.0,95355.0,0.1488704]
[1763170569328,0.00015737,95356.0,95355.0,0.04391]
[1763170570027,0.02322737,95356.0,95355.0,0.04391]
[1763170570622,0.00015737,95356.0,95355.0,0.04391]
[1763170570831,0.04525,95342.0,95341.0,0.3818]
[1763170571032,0.04525,95341.0,95340.0,0.00219803]
[1763170571432,0.04525,95341.0,95340.0,0.02319803]
[1763170572334,0.04525,95341.0,95340.0,0.04635803]
[1763170580241,0.40406,95350.0,95349.0,0.04489]
[1763170580441,0.40479267,95350.0,95349.0,0.02213]
[1763170580643,0.04326,95339.0,95338.0,0.07278585]
[1763170580844,0.04326,95338.0,95337.0,0.00015737]
[1763170581144,0.04326,95330.0,95329.0,0.02789585]
[1763170581343,0.04326,95318.0,95317.0,0.40569]
[1763170582343,0.04326,95318.0,95310.0,0.18683292]
[1763170582549,0.04326,95311.0,95310.0,0.04708803]
[1763170586947,0.01369,95319.0,95310.0,0.04708803]
[1763170586948,0.40406,95320.0,95319.0,0.04489]
[1763170587142,0.40479267,95320.0,95319.0,0.04489]
[1763170587554,0.40479267,95320.0,95319.0,0.02213]
[1763170587759,0.41824267,95320.0,95319.0,0.02213]
[1763170590448,0.04454,95311.0,95310.0,0.20844292]
[1763170590648,0.04454,95311.0,95310.0,0.02380803]
[1763170590848,0.04454,95311.0,95310.0,0.04598803]
[1763170591555,0.40534,95320.0,95319.0,0.04379]
[1763170591757,0.3608,95320.0,95319.0,0.04379]
[1763170592152,0.00015737,95327.0,95326.0,0.04379]
[1763170593060,0.3608,95341.0,95340.0,0.1487669]
[1763170593257,0.3608,95341.0,95340.0,0.15096493]
[1763170593647,0.07504424,95383.0,95340.0,0.15096493]
[1763170593648,0.3608,95360.0,95359.0,0.132956]
[1763170593954,0.00015737,95369.0,95365.0,0.028]
[1763170594157,0.04480215,95366.0,95365.0,0.3888]
[1763170595358,0.04480215,95366.0,95365.0,0.3608]
[1763170595859,0.04480215,95366.0,95365.0,0.3888]
[1763170596059,0.04480215,95366.0,95365.0,0.3748]
[1763170596264,0.04480215,95366.0,95365.0,0.3608]
[1763170597153,0.04480215,95366.0,95365.0,0.3888]
[1763170597356,0.15457571,95366.0,95365.0,0.3608]
[1763170597562,0.04454,95361.0,95360.0,0.00219803]
[1763170597864,0.01345,95364.0,95363.0,0.028]
[1763170598356,0.05799,95364.0,95363.0,0.028]
[1763170599060,0.05799,95364.0,95360.0,0.36299803]
[1763170599061,0.00026215,95366.0,95365.0,0.028]
[1763170599361,0.02242215,95366.0,95365.0,0.028]
[1763170599557,0.04480215,95366.0,95365.0,0.028]
[1763170600465,0.00026215,95366.0,95365.0,0.1329494]
[1763170601456,0.00026215,95366.0,95365.0,0.03842351]
[1763170601649,0.02242215,95366.0,95365.0,0.03842351]
[1763170601855,0.04480215,95366.0,95365.0,0.03842351]
[1763170602259,0.04480215,95366.0,95365.0,0.028]
[1763170602860,0.04454,95361.0,95360.0,0.39099803]
[1763170603654,0.04454,95361.0,95360.0,0.40181329]
[1763170604058,0.04454,95361.0,95360.0,0.36299803]
[1763170604555,0.04454,95361.0,95360.0,0.37699803]
[1763170604757,0.04454,95361.0,95360.0,0.39099803]
[1763170605064,0.04454,95361.0,95360.0,0.36299803]
[1763170605259,0.04454,95361.0,95360.0,0.39099803]
[1763170605461,0.04454,95361.0,95360.0,0.36299803]
[1763170605764,0.04454,95361.0,95360.0,0.39099803]
[1763170606364,0.04454,95361.0,95360.0,0.36299803]
[1763170607565,0.04454,95361.0,95360.0,0.39099803]
[1763170608068,0.03561,95364.0,95363.0,0.028]
[1763170608264,0.00026215,95366.0,95365.0,0.028]
[1763170608765,0.41735752,95393.0,95381.0,0.1329318]
[1763170608766,0.40534,95382.0,95381.0,0.1329318]
[1763170608969,0.40534,95382.0,95381.0,0.3888]
[1763170608970,0.02216,95382.0,95381.0,0.3888]
[1763170609565,0.04454,95382.0,95381.0,0.3888]
[1763170609762,0.01345,95400.0,95383.0,0.028]
[1763170609963,0.00073267,95390.0,95383.0,0.028]
[1763170610171,0.05799,95384.0,95383.0,0.028]
[1763170610667,0.05799,95391.0,95390.0,0.028]
[1763170610868,0.00015728,95393.0,95392.0,0.028]
[1763170611164,0.04469728,95393.0,95392.0,0.028]
[1763170612269,0.04469728,95393.0,95390.0,0.00219803]
[1763170612270,0.05799,95391.0,95390.0,0.00219803]
[1763170612459,0.05799,95391.0,95390.0,0.03019803]
[1763170612660,0.00015728,95393.0,95392.0,0.028]
[1763170612861,0.02231728,95393.0,95392.0,0.028]
[1763170613063,0.04469728,95393.0,95392.0,0.028]
[1763170613357,0.00015728,95393.0,95392.0,0.028]
[1763170615762,0.3608,95421.0,95395.0,0.028]
[1763170615963,0.01345,95427.0,95405.0,0.0277]
[1763170616275,0.01345,95427.0,95405.0,0.3885]
[1763170616773,0.00015674,95415.0,95405.0,0.3885]
[1763170618375,0.00015674,95415.0,95414.0,0.01718]
[1763170618569,0.00015674,95415.0,95414.0,0.4828755]
[1763170621077,0.00015674,95415.0,95414.0,0.37798]
[1763170621573,0.02282674,95415.0,95414.0,0.37798]
[1763170621875,0.02282674,95415.0,95410.0,0.00219803]
[1763170621876,0.04562,95411.0,95410.0,0.00219803]
[1763170622076,0.04562,95406.0,95405.0,0.3608]
[1763170622274,0.04562,95406.0,95401.0,0.1273355]
[1763170622463,0.04562,95401.0,95400.0,0.00219803]
[1763170623873,0.15686532,95401.0,95400.0,0.00219803]
[1763170624874,0.04562,95397.0,95396.0,0.12749278]
[1763170625172,0.15562359,95397.0,95396.0,0.00015728]
[1763170625570,0.04562,95388.0,95387.0,0.1273355]
[1763170625767,0.04562,95379.0,95378.0,0.1273355]
[1763170625966,0.01312,95380.0,95375.0,0.36088865]
[1763170625967,0.04562,95376.0,95375.0,0.36088865]
[1763170627371,0.04562,95376.0,95375.0,0.37836865]
[1763170627875,0.01385267,95380.0,95379.0,0.01748]
[1763170628183,0.00015728,95385.0,95384.0,0.1224085]
[1763170628381,0.00015728,95385.0,95384.0,0.4832085]
[1763170630379,0.01312,95409.0,95402.0,0.1223887]
[1763170630380,0.37477,95403.0,95402.0,0.1223887]
[1763170630584,0.03593,95409.0,95408.0,0.1223821]
[1763170631277,0.03593,95409.0,95408.0,0.01748]
[1763170631584,0.05739,95409.0,95408.0,0.01748]
[1763170631883,0.05739,95409.0,95408.0,0.00874]
[1763170632268,0.04427,95406.0,95405.0,0.3608]
[1763170632680,0.04427,95406.0,95405.0,0.37828]
[1763170634779,0.04427,95406.0,95405.0,0.3608]
[1763170635383,0.01312,95409.0,95408.0,0.01748]
[1763170635675,0.05739,95409.0,95408.0,0.01748]
[1763170637173,0.05739,95409.0,95408.0,0.00874]
[1763170637883,0.04427,95406.0,95405.0,0.36954]
[1763170638584,0.04427,95406.0,95405.0,0.3608]
[1763170638788,0.04427,95401.0,95400.0,0.00219803]
[1763170638978,0.01312,95409.0,95400.0,0.01967803]
[1763170639172,0.00073267,95410.0,95409.0,0.122381]
[1763170640497,0.01470267,95410.0,95409.0,0.122381]
[1763170641777,0.00015674,95418.0,95417.0,0.01748]
[1763170641993,0.00015674,95418.0,95417.0,0.37828]
[1763170643078,0.04442674,95418.0,95409.0,0.02793907]
[1763170643280,0.04427,95410.0,95409.0,0.00874]
[1763170643486,0.05897267,95410.0,95409.0,0.00874]
[1763170644287,0.04427,95408.0,95407.0,0.3608]
[1763170645881,0.04427,95402.0,95401.0,0.1223891]
[1763170648579,0.05667,95410.0,95409.0,0.01748]
[1763170648778,0.05740267,95410.0,95409.0,0.3608]
[1763170648978,0.05740267,95410.0,95400.0,0.37828]
[1763170648979,0.0427,95401.0,95400.0,0.37828]
[1763170649184,0.0427,95401.0,95400.0,0.4084196]
[1763170649389,0.0427,95401.0,95400.0,0.38047803]
[1763170650286,0.02154,95401.0,95400.0,0.38047803]
[1763170650591,0.05667,95410.0,95409.0,0.01748]
[1763170650792,0.05740267,95410.0,95409.0,0.01748]
[1763170651985,0.05740267,95410.0,95409.0,0.00874]
[1763170653488,0.0427,95403.0,95402.0,0.01748]
[1763170656301,0.01397,95410.0,95399.0,0.00015728]
[1763170656302,0.05643267,95400.0,95399.0,0.00015728]
[1763170656498,0.0427,95381.0,95380.0,0.55588432]
[1763170656703,0.0427,95381.0,95380.0,0.36299803]
[1763170658001,0.0427,95381.0,95380.0,0.37173803]
[1763170659903,0.0437,95381.0,95380.0,0.37173803]
[1763170660197,0.001,95381.0,95380.0,0.38047803]
[1763170661502,0.04285728,95390.0,95389.0,0.00874]
[1763170661701,0.04358995,95390.0,95389.0,0.00874]
[1763170662297,0.04358995,95390.0,95389.0,0.113663]
[1763170662501,0.04358995,95390.0,95389.0,0.122403]
[1763170663408,0.04358995,95390.0,95389.0,0.01748]
[1763170663596,0.04458995,95390.0,95389.0,0.01748]
[1763170664801,0.04558995,95390.0,95389.0,0.01748]
[1763170666109,0.00215728,95390.0,95389.0,0.01748]
[1763170666711,0.0557,95409.0,95408.0,0.1223821]
[1763170666909,0.0557,95409.0,95408.0,0.4831821]
[1763170667608,0.0557,95409.0,95408.0,0.51109969]
[1763170667804,0.0567,95409.0,95408.0,0.51109969]
[1763170668004,0.0577,95409.0,95408.0,0.4831821]
[1763170669402,0.015,95409.0,95408.0,0.4831821]
[1763170669606,0.0577,95409.0,95408.0,0.4831821]
[1763170669803,0.0577,95409.0,95408.0,0.3608]
[1763170670008,0.0577,95409.0,95408.0,0.38871324]
[1763170670212,0.0577,95409.0,95408.0,0.3608]
[1763170671703,0.0577,95409.0,95408.0,0.37828]
[1763170671904,0.0577,95409.0,95408.0,0.36954]
[1763170672407,0.0577,95409.0,95408.0,0.37828]
[1763170673611,0.002,95409.0,95408.0,0.37828]
[1763170674813,0.03654,95409.0,95408.0,0.37828]
[1763170677316,0.015,95409.0,95408.0,0.37828]
[1763170679915,0.002,95409.0,95408.0,0.37828]
[1763170680214,0.02355,95409.0,95408.0,0.37828]
[1763170681614,0.002,95409.0,95408.0,0.37828]
[1763170683617,0.002,95409.0,95408.0,0.38702]
[1763170683819,0.002,95409.0,95408.0,0.41493324]
[1763170684119,0.002,95409.0,95408.0,0.38702]
[1763170684421,0.002,95409.0,95408.0,0.41490838]
[1763170684622,0.002,95409.0,95408.0,0.38702]
[1763170686314,0.002,95409.0,95408.0,0.41490838]
[1763170688426,0.002,95409.0,95408.0,0.41490788]
[1763170688823,0.002,95409.0,95408.0,0.40616788]
[1763170689320,0.002,95409.0,95408.0,0.37828]
[1763170689924,0.02355,95409.0,95408.0,0.37828]
[1763170690324,0.02355,95409.0,95408.0,0.40616788]
[1763170690629,0.00015674,95418.0,95417.0,0.1223722]
[1763170690926,0.00015674,95418.0,95417.0,0.4831722]
[1763170691229,0.00015674,95418.0,95417.0,0.51107025]
[1763170691920,0.04271674,95418.0,95417.0,0.51107025]
[1763170692122,0.04271674,95418.0,95417.0,0.4831722]
[1763170693123,0.04271674,95418.0,95417.0,0.40617805]
[1763170693319,0.04271674,95418.0,95417.0,0.37828]
[1763170693528,0.04271674,95418.0,95417.0,0.40619744]
[1763170693724,0.04271674,95418.0,95417.0,0.37828]
[1763170703529,0.04271674,95418.0,95417.0,0.3608]
[1763170704834,0.04271674,95418.0,95417.0,0.36954]
[1763170705036,0.04271674,95418.0,95417.0,0.37828]
[1763170705629,0.05644674,95418.0,95417.0,0.37828]
[1763170706029,0.01873,95436.0,95417.0,0.37828]
[1763170706336,0.005,95436.0,95435.0,0.1223524]
[1763170706537,0.005,95436.0,95435.0,0.01748]
[1763170707238,0.0264,95436.0,95435.0,0.01748]
[1763170708139,0.0264,95436.0,95435.0,0.04541196]
[1763170708338,0.0264,95436.0,95435.0,0.01748]
[1763170708529,0.0264,95436.0,95435.0,0.0280784]
[1763170708723,0.04403,95435.0,95434.0,0.13280486]
[1763170709032,0.04403,95435.0,95434.0,0.1223529]
[1763170709735,0.04403,95434.0,95433.0,0.3608]
[1763170709936,0.04403,95434.0,95433.0,0.36954]
[1763170710336,0.04403,95434.0,95433.0,0.37828]
[1763170710739,0.15483063,95434.0,95433.0,0.3608]
[1763170711134,0.04403,95431.0,95430.0,0.00219803]
[1763170711536,0.16547899,95431.0,95430.0,0.00219803]
[1763170711935,0.04403,95427.0,95426.0,0.0001572]
[1763170712437,0.16104933,95427.0,95426.0,0.0001572]
[1763170713634,0.16104933,95427.0,95426.0,0.0088972]
[1763170715234,0.16104933,95427.0,95426.0,0.1225195]
[1763170715436,0.00073267,95430.0,95429.0,0.122359]
[1763170716031,0.0276,95436.0,95435.0,0.1223524]
[1763170716234,0.0276,95436.0,95435.0,0.4831524]
[1763170717336,0.005,95436.0,95435.0,0.4831524]
[1763170720130,3e-08,95446.0,95445.0,0.1048615]
[1763170720443,3e-08,95446.0,95445.0,0.4656615]
[1763170722446,0.04403003,95446.0,95445.0,0.36828]
[1763170722634,0.04403003,95446.0,95445.0,0.36454]
[1763170722833,0.04403003,95446.0,95445.0,0.3608]
[1763170723236,0.16111404,95446.0,95445.0,0.3608]
[1763170725135,0.16111404,95446.0,95445.0,0.36828]
[1763170726740,0.16111404,95446.0,95445.0,0.3608]
[1763170727744,0.16111404,95446.0,95440.0,0.00219803]
[1763170727745,0.04403,95441.0,95440.0,0.00219803]
[1763170728951,0.04403,95436.0,95435.0,0.3608]
[1763170729649,0.04403,95431.0,95430.0,0.12702273]
[1763170729850,0.04403,95431.0,95430.0,0.12922076]
[1763170730543,0.05696,95427.0,95415.0,0.3608]
[1763170730743,0.04403,95416.0,95415.0,0.3608]
[1763170731139,0.16252753,95416.0,95415.0,0.3608]
[1763170732647,0.04403,95411.0,95410.0,0.00219803]
[1763170735052,0.04403,95411.0,95410.0,0.00999803]
[1763170737853,0.04403,95411.0,95410.0,0.00609803]
[1763170738450,0.04403,95411.0,95410.0,0.00219803]
[1763170740156,0.04403,95411.0,95406.0,0.0001572]
[1763170740157,0.04429,95407.0,95406.0,0.0001572]
[1763170740548,0.15702882,95407.0,95406.0,0.0001572]
[1763170743645,0.04429,95398.0,95397.0,0.11911733]
[1763170743848,0.04429,95398.0,95396.0,0.3608]
[1763170743849,0.04429,95397.0,95396.0,0.3608]
[1763170744155,0.15555031,95397.0,95396.0,0.3608]
[1763170744960,0.04429,95389.0,95388.0,0.12317733]
[1763170745262,0.04429,95388.0,95387.0,0.0001572]
[1763170748356,0.04429,95388.0,95376.0,0.3608]
[1763170748357,0.04429,95377.0,95376.0,0.3608]
[1763170748761,0.05711,95376.0,95375.0,8.865e-05]
[1763170748952,0.04429,95371.0,95370.0,0.11911733]
[1763170749147,0.04429,95367.0,95364.0,0.3608]
[1763170749555,0.04429,95367.0,95361.0,0.11927453]
[1763170750154,0.04429,95367.0,95366.0,0.00456215]
[1763170751460,0.04429,95367.0,95366.0,0.11381045]
[1763170751967,0.04429,95367.0,95366.0,0.00886215]
[1763170753357,0.02225,95367.0,95366.0,0.00886215]
[1763170753563,0.03503593,95376.0,95375.0,0.1135384]
[1763170753756,0.01306593,95376.0,95375.0,0.1135384]
[1763170754261,0.00024593,95376.0,95375.0,0.1135384]
[1763170755865,0.02221593,95376.0,95375.0,0.1135384]
[1763170756272,0.04493593,95376.0,95375.0,0.0086]
[1763170756473,0.04469,95374.0,95373.0,0.3651]
[1763170756660,0.04469,95374.0,95373.0,0.3694]
[1763170758169,0.00024593,95376.0,95375.0,0.0086]
[1763170758466,0.04493593,95376.0,95375.0,0.0086]
[1763170759364,0.00024593,95376.0,95375.0,0.0086]
[1763170760263,0.00024593,95376.0,95375.0,0.0364854]
[1763170760463,0.04493593,95376.0,95375.0,0.0086]
[1763170760670,0.02221593,95376.0,95375.0,0.0086]
[1763170760863,0.00024593,95376.0,95375.0,0.0086]
[1763170762666,0.00024593,95376.0,95375.0,0.04579974]
[1763170764472,0.00024593,95376.0,95375.0,0.0086]
[1763170768384,0.00024593,95376.0,95375.0,0.04579974]
[1763170768784,0.00024593,95376.0,95375.0,0.0086]
[1763170769085,0.00024593,95376.0,95375.0,0.04580242]
[1763170769286,0.00024593,95376.0,95375.0,0.0096]
[1763170769481,0.00024593,95376.0,95375.0,0.0106]
[1763170770382,0.00024593,95376.0,95375.0,0.0096]
[1763170770584,0.00024593,95376.0,95375.0,0.0106]
[1763170770886,0.00024593,95376.0,95375.0,0.0096]
[1763170771184,0.00024593,95376.0,95375.0,0.0106]
[1763170772087,0.02126593,95376.0,95375.0,0.0106]
[1763170772286,0.02126593,95376.0,95375.0,0.0096]
[1763170772487,0.04309593,95376.0,95375.0,0.0086]
[1763170772889,0.02126593,95376.0,95375.0,0.0086]
[1763170773279,0.00024593,95376.0,95375.0,0.0086]
[1763170773481,0.02126593,95376.0,95375.0,0.0086]
[1763170773685,0.04309593,95376.0,95375.0,0.0086]
[1763170775182,0.05567,95392.0,95391.0,0.0086]
[1763170775389,0.05567,95392.0,95391.0,0.4743208]
[1763170775390,0.03384,95392.0,95391.0,0.4743208]
[1763170776079,0.01364,95396.0,95395.0,0.1049164]
[1763170776283,0.01364,95396.0,95395.0,0.1135164]
[1763170776284,0.03466,95396.0,95395.0,0.1135164]
[1763170776478,0.01364,95396.0,95395.0,0.1135164]
[1763170776684,0.0559,95400.0,95399.0,0.113512]
[1763170776886,0.0559,95400.0,95399.0,0.474312]
[1763170777382,0.0559,95400.0,95399.0,0.5022484]
[1763170778181,0.0559,95400.0,95399.0,0.474312]
[1763170779487,0.01305,95400.0,95399.0,0.474312]
[1763170779686,0.00015728,95401.0,95400.0,0.01079803]
[1763170780295,0.02117728,95401.0,95400.0,0.01079803]
[1763170780595,0.04300728,95401.0,95400.0,0.01079803]
[1763170783189,0.04300728,95401.0,95400.0,0.04806487]
[1763170783502,0.04300728,95401.0,95400.0,0.40886487]
[1763170783984,0.04300728,95401.0,95400.0,0.40026487]
[1763170784179,0.04300728,95401.0,95400.0,0.36299803]
[1763170784485,0.04300728,95401.0,95400.0,0.47650893]
[1763170784685,0.04300728,95401.0,95400.0,0.47220893]
[1763170786389,0.04300728,95401.0,95400.0,0.47650893]
[1763170787594,0.04300728,95401.0,95400.0,0.37159803]
[1763170799901,0.02117728,95401.0,95400.0,0.37159803]
[1763170800097,0.04283728,95401.0,95400.0,0.37159803]
[1763170801202,0.04283728,95401.0,95400.0,0.3608]
[1763170801406,0.04426,95393.0,95392.0,0.3608]
[1763170803902,0.04426,95393.0,95392.0,0.38347]
[1763170804409,0.04426,95393.0,95392.0,0.3608]
[1763170805506,0.04426,95393.0,95392.0,0.38347]
[1763170806208,0.04426,95393.0,95392.0,0.3608]
[1763170806403,0.04426,95393.0,95392.0,0.38347]
[1763170806708,0.04426,95393.0,95392.0,0.3608]
[1763170806901,0.04426,95393.0,95392.0,0.41152726]
[1763170807304,0.04426,95393.0,95392.0,0.3608]
[1763170807702,0.04426,95391.0,95390.0,0.00219803]
[1763170808903,0.04426,95391.0,95390.0,0.02486803]
[1763170809103,0.04426,95391.0,95390.0,0.00219803]
[1763170810704,0.04549,95386.0,95385.0,0.05072726]
[1763170811098,0.04549,95386.0,95385.0,0.02267]
[1763170811303,0.04549,95386.0,95385.0,0.0506917]
[1763170811499,0.04549,95386.0,95385.0,0.04572]
[1763170812414,0.04549,95386.0,95385.0,0.07372718]
[1763170814415,0.04549,95386.0,95385.0,0.04572]
[1763170815417,0.04549,95386.0,95385.0,0.07372387]
[1763170815609,0.04549,95386.0,95385.0,0.07372297]
[1763170815914,0.04549,95386.0,95385.0,0.04572]
[1763170816418,0.04549,95386.0,95385.0,0.07372032]
[1763170817002,0.00073267,95390.0,95389.0,0.149343]
[1763170817207,0.02348267,95390.0,95389.0,0.149343]
[1763170817505,0.01366,95412.0,95400.0,0.04442]
[1763170817712,0.01366,95412.0,95400.0,0.04661803]
[1763170818012,0.02290728,95401.0,95400.0,0.07460767]
[1763170818207,0.02290728,95401.0,95400.0,0.04661803]
[1763170819018,0.04579728,95401.0,95400.0,0.04661803]
[1763170819609,0.04564,95395.0,95394.0,0.38217]
[1763170819820,0.04564,95395.0,95394.0,0.40522]
[1763170822313,0.00015728,95401.0,95400.0,0.04442]
[1763170822521,0.00015728,95401.0,95400.0,0.04661803]
[1763170823408,0.00015728,95401.0,95400.0,0.05828803]
[1763170831827,0.04466728,95401.0,95400.0,0.04661803]
[1763170832217,0.00015728,95401.0,95400.0,0.08394632]
[1763170832726,0.00015728,95401.0,95400.0,0.09561632]
[1763170833124,0.00015728,95401.0,95400.0,0.05828803]
[1763170834422,0.00015728,95401.0,95400.0,0.09561055]
[1763170835023,0.04466728,95401.0,95400.0,0.08394055]
[1763170835330,0.04466728,95401.0,95400.0,0.15152893]
[1763170835524,0.00015728,95401.0,95400.0,0.18885145]
[1763170835834,0.00015728,95401.0,95400.0,0.20052145]
[1763170836028,0.00015728,95401.0,95400.0,0.16319893]
[1763170836330,0.00015728,95401.0,95400.0,0.200526]
[1763170836726,0.05817,95424.0,95423.0,0.04558]
[1763170840432,0.05817,95424.0,95423.0,0.05594733]
[1763170841226,0.04451,95421.0,95420.0,0.00219803]
[1763170841429,0.04451,95421.0,95420.0,0.04777803]
[1763170842431,0.04451,95416.0,95415.0,0.3608]
[1763170842820,0.04451,95416.0,95415.0,0.40638]
[1763170844822,0.01306,95418.0,95414.0,0.00015719]
[1763170844823,0.04451,95415.0,95414.0,0.00015719]
[1763170846029,0.04451,95407.0,95406.0,0.12703255]
[1763170846240,0.04451,95399.0,95398.0,0.0103421]
[1763170846537,0.15537401,95399.0,95398.0,0.0103421]
[1763170846723,0.04451,95398.0,95397.0,0.3608]